[Event "Late-Titled-Tuesday-Blitz-March-26-2024"]
[Site "Chess.com"]
[Date "2024.03.26"]
[Round "1"]
[White "EsmeraldasAnderson03"]
[Black "jinxy2009"]
[Result "1-0"]
[WhiteElo "2608"]
[BlackElo "2263"]
[TimeControl "180+1"]
[EndTime "14:06:54 PDT"]
[Termination "EsmeraldasAnderson03 won by resignation"]

1. d4 {[%clk 0:02:59.6]} 1... Nf6 {[%clk 0:02:46.8]} 2. c4 {[%clk 0:02:59.5]}
2... g6 {[%clk 0:02:47.3]} 3. Nc3 {[%clk 0:02:59.7]} 3... d5 {[%clk 0:02:48]} 4.
cxd5 {[%clk 0:02:59.7]} 4... Nxd5 {[%clk 0:02:48.9]} 5. e4 {[%clk 0:03:00.1]}
5... Nxc3 {[%clk 0:02:49.6]} 6. bxc3 {[%clk 0:03:00.6]} 6... Bg7 {[%clk
0:02:50.3]} 7. Bc4 {[%clk 0:03:00.8]} 7... c5 {[%clk 0:02:50.3]} 8. Ne2 {[%clk
0:02:58.5]} 8... O-O {[%clk 0:02:50]} 9. O-O {[%clk 0:02:57.7]} 9... Nc6 {[%clk
0:02:50.6]} 10. Be3 {[%clk 0:02:58.1]} 10... b6 {[%clk 0:02:50.2]} 11. Qd2
{[%clk 0:02:53.8]} 11... e6 {[%clk 0:02:46]} 12. Rfd1 {[%clk 0:02:51.9]} 12...
cxd4 {[%clk 0:02:42.8]} 13. cxd4 {[%clk 0:02:51.5]} 13... Na5 {[%clk 0:02:43.7]}
14. Bd3 {[%clk 0:02:50.9]} 14... Bb7 {[%clk 0:02:43.5]} 15. Rac1 {[%clk
0:02:50]} 15... Qd7 {[%clk 0:02:41.7]} 16. Bh6 {[%clk 0:02:48.6]} 16... Rac8
{[%clk 0:02:40.4]} 17. Bxg7 {[%clk 0:02:47.6]} 17... Kxg7 {[%clk 0:02:41.3]} 18.
h4 {[%clk 0:02:44.1]} 18... h5 {[%clk 0:02:34.7]} 19. Qg5 {[%clk 0:02:41.3]}
19... Rxc1 {[%clk 0:02:14.1]} 20. Rxc1 {[%clk 0:02:39.5]} 20... Rc8 {[%clk
0:02:14.1]} 21. Rxc8 {[%clk 0:02:35.8]} 21... Qxc8 {[%clk 0:02:15]} 22. Ng3
{[%clk 0:02:32.5]} 22... Kf8 {[%clk 0:01:37.1]} 23. Qh6+ {[%clk 0:02:05.7]}
23... Ke7 {[%clk 0:01:36.8]} 24. Qg5+ {[%clk 0:01:59.6]} 24... Kf8 {[%clk
0:01:36.3]} 25. e5 {[%clk 0:01:59.5]} 25... Nc6 {[%clk 0:01:14.2]} 26. Ne4
{[%clk 0:01:47.8]} 26... Nxd4 {[%clk 0:00:56.9]} 27. Nd6 {[%clk 0:01:48.2]}
27... Qd7 {[%clk 0:00:57.1]} 28. Bxg6 {[%clk 0:01:46.3]} 28... fxg6 {[%clk
0:00:48.8]} 29. Qf4+ {[%clk 0:01:39]} 29... Nf5 {[%clk 0:00:47.9]} 30. f3 {[%clk
0:01:07.6]} 30... Kg7 {[%clk 0:00:28.1]} 31. Kh2 {[%clk 0:00:56.2]} 31... Bc6
{[%clk 0:00:19.4]} 32. g4 {[%clk 0:00:50.6]} 32... Nxd6 {[%clk 0:00:19.2]} 33.
exd6 {[%clk 0:00:51]} 33... hxg4 {[%clk 0:00:17.1]} 34. fxg4 {[%clk 0:00:51.9]}
34... Bd5 {[%clk 0:00:17.3]} 35. h5 {[%clk 0:00:50.8]} 35... gxh5 {[%clk
0:00:12]} 36. gxh5 {[%clk 0:00:51.7]} 36... Qf7 {[%clk 0:00:11.8]} 37. h6+
{[%clk 0:00:51.8]} 37... Kf8 {[%clk 0:00:10.8]} 38. Qxf7+ {[%clk 0:00:52.1]}
38... Kxf7 {[%clk 0:00:11.2]} 39. d7 {[%clk 0:00:52.8]} 39... Ke7 {[%clk
0:00:10.2]} 40. h7 {[%clk 0:00:53.2]} 40... Kxd7 {[%clk 0:00:11.1]} 41. h8=Q
{[%clk 0:00:53.7]} 41... Kc7 {[%clk 0:00:11.3]} 42. Qg7+ {[%clk 0:00:52.7]}
42... Kc6 {[%clk 0:00:11]} 43. Qxa7 {[%clk 0:00:52.2]} 43... b5 {[%clk
0:00:09.8]} 44. Kg3 {[%clk 0:00:52.5]} 44... Kd6 {[%clk 0:00:06.3]} 45. Kf4
{[%clk 0:00:52.7]} 45... Kc6 {[%clk 0:00:06.7]} 46. Ke5 {[%clk 0:00:52.7]} 1-0

[Event "Late-Titled-Tuesday-Blitz-March-26-2024"]
[Site "Chess.com"]
[Date "2024.03.26"]
[Round "1"]
[White "vladoboch"]
[Black "BlueWizzard"]
[Result "0-1"]
[WhiteElo "2467"]
[BlackElo "2877"]
[TimeControl "180+1"]
[EndTime "14:06:55 PDT"]
[Termination "BlueWizzard won by resignation"]

1. Nf3 {[%clk 0:02:59.1]} 1... g6 {[%clk 0:03:00.9]} 2. c4 {[%clk 0:02:59.4]}
2... Bg7 {[%clk 0:03:00.3]} 3. d4 {[%clk 0:02:59.4]} 3... c5 {[%clk 0:02:59.8]}
4. d5 {[%clk 0:02:54.4]} 4... b5 {[%clk 0:02:55.8]} 5. e4 {[%clk 0:02:47.1]}
5... Nf6 {[%clk 0:02:54]} 6. Nbd2 {[%clk 0:02:15.9]} 6... O-O {[%clk 0:02:48.6]}
7. Bd3 {[%clk 0:02:14.9]} 7... d6 {[%clk 0:02:41.1]} 8. O-O {[%clk 0:02:13.1]}
8... b4 {[%clk 0:02:39.9]} 9. a3 {[%clk 0:02:09.6]} 9... a5 {[%clk 0:02:37.4]}
10. Re1 {[%clk 0:01:56.6]} 10... Bg4 {[%clk 0:02:22]} 11. h3 {[%clk 0:01:50.1]}
11... Bxf3 {[%clk 0:02:22.1]} 12. Nxf3 {[%clk 0:01:49.9]} 12... Nfd7 {[%clk
0:02:22.6]} 13. Qe2 {[%clk 0:01:34.4]} 13... Na6 {[%clk 0:02:16.5]} 14. Rb1
{[%clk 0:01:06.8]} 14... Rb8 {[%clk 0:02:01.2]} 15. Bf4 {[%clk 0:01:01.4]} 15...
Ne5 {[%clk 0:01:46.9]} 16. Nxe5 {[%clk 0:00:57.3]} 16... Bxe5 {[%clk 0:01:46.7]}
17. Bh6 {[%clk 0:00:52.5]} 17... Re8 {[%clk 0:01:42.2]} 18. f4 {[%clk 0:00:51]}
18... Bd4+ {[%clk 0:01:42.5]} 19. Kh1 {[%clk 0:00:49.7]} 19... e6 {[%clk
0:01:40]} 20. dxe6 {[%clk 0:00:42.2]} 20... Rxe6 {[%clk 0:01:38.8]} 21. Qg4
{[%clk 0:00:34]} 21... Kh8 {[%clk 0:01:22.1]} 22. e5 {[%clk 0:00:20.2]} 22...
dxe5 {[%clk 0:01:15.5]} 23. Bg5 {[%clk 0:00:09.4]} 23... Qf8 {[%clk 0:00:57.9]}
24. f5 {[%clk 0:00:09.4]} 24... Rd6 {[%clk 0:00:49.3]} 25. Be4 {[%clk
0:00:06.2]} 25... f6 {[%clk 0:00:47.9]} 26. Bh4 {[%clk 0:00:04.1]} 26... g5
{[%clk 0:00:46.3]} 27. Bg3 {[%clk 0:00:03.7]} 27... Qe8 {[%clk 0:00:32.9]} 28.
Qf3 {[%clk 0:00:02.1]} 28... Rdb6 {[%clk 0:00:28.6]} 29. b3 {[%clk 0:00:01.3]}
29... bxa3 {[%clk 0:00:28.7]} 30. Re2 {[%clk 0:00:01.6]} 30... a4 {[%clk
0:00:28.7]} 31. Ra2 {[%clk 0:00:01.4]} 31... Rxb3 {[%clk 0:00:28.4]} 32. Rxb3
{[%clk 0:00:01.9]} 32... Rxb3 {[%clk 0:00:25.8]} 33. Qh5 {[%clk 0:00:01.7]}
33... Qxh5 {[%clk 0:00:25]} 0-1

[Event "Late-Titled-Tuesday-Blitz-March-26-2024"]
[Site "Chess.com"]
[Date "2024.03.26"]
[Round "1"]
[White "kids2010"]
[Black "Nemsko"]
[Result "1-0"]
[WhiteElo "2802"]
[BlackElo "2429"]
[TimeControl "180+1"]
[EndTime "14:07:00 PDT"]
[Termination "kids2010 won by checkmate"]

1. e4 {[%clk 0:02:59.5]} 1... e5 {[%clk 0:02:58.5]} 2. Nf3 {[%clk 0:02:59.1]}
2... Nc6 {[%clk 0:02:58.5]} 3. Nc3 {[%clk 0:02:58.6]} 3... Nf6 {[%clk
0:02:58.3]} 4. Bb5 {[%clk 0:02:58.1]} 4... Bc5 {[%clk 0:02:46.2]} 5. O-O {[%clk
0:02:54.4]} 5... d6 {[%clk 0:02:44.2]} 6. d4 {[%clk 0:02:53.1]} 6... exd4 {[%clk
0:02:43.8]} 7. Nxd4 {[%clk 0:02:52.9]} 7... Bd7 {[%clk 0:02:41.7]} 8. Be3 {[%clk
0:02:52.3]} 8... O-O {[%clk 0:02:40.9]} 9. Bxc6 {[%clk 0:02:47.9]} 9... bxc6
{[%clk 0:02:41.8]} 10. Qd3 {[%clk 0:02:42.7]} 10... Rb8 {[%clk 0:02:37.3]} 11.
Nb3 {[%clk 0:02:37.6]} 11... Bb6 {[%clk 0:02:30.9]} 12. Rad1 {[%clk 0:02:29.4]}
12... h6 {[%clk 0:02:29.4]} 13. h3 {[%clk 0:02:18.4]} 13... Qe7 {[%clk
0:02:25.5]} 14. Rfe1 {[%clk 0:02:14.2]} 14... Rfe8 {[%clk 0:02:25.5]} 15. a4
{[%clk 0:01:36.3]} 15... Be6 {[%clk 0:02:04.6]} 16. Nd4 {[%clk 0:01:31.2]} 16...
Bxd4 {[%clk 0:02:00.3]} 17. Bxd4 {[%clk 0:01:31.2]} 17... c5 {[%clk 0:01:56.3]}
18. Bxf6 {[%clk 0:01:27]} 18... Qxf6 {[%clk 0:01:57.2]} 19. b3 {[%clk
0:01:26.1]} 19... Qg6 {[%clk 0:01:46.6]} 20. Nb5 {[%clk 0:01:20.4]} 20... Rb7
{[%clk 0:01:43.1]} 21. e5 {[%clk 0:01:15.3]} 21... Qxd3 {[%clk 0:01:20.8]} 22.
Rxd3 {[%clk 0:01:15.1]} 22... d5 {[%clk 0:01:19.5]} 23. f4 {[%clk 0:01:15.1]}
23... g6 {[%clk 0:01:17]} 24. g4 {[%clk 0:01:13.2]} 24... a6 {[%clk 0:01:17.2]}
25. Nc3 {[%clk 0:01:12.9]} 25... c6 {[%clk 0:01:17.7]} 26. Ne2 {[%clk
0:01:07.3]} 26... Rb4 {[%clk 0:01:14.1]} 27. Rf1 {[%clk 0:01:03.6]} 27... Bc8
{[%clk 0:01:07.9]} 28. Rc3 {[%clk 0:00:51.7]} 28... a5 {[%clk 0:01:05.6]} 29.
Rxc5 {[%clk 0:00:42]} 29... Ba6 {[%clk 0:01:05.5]} 30. Re1 {[%clk 0:00:35.3]}
30... Re4 {[%clk 0:01:02.7]} 31. Kf2 {[%clk 0:00:34.8]} 31... Bxe2 {[%clk
0:01:01.3]} 32. Rxe2 {[%clk 0:00:34.7]} 32... Rxf4+ {[%clk 0:01:01.9]} 33. Kg3
{[%clk 0:00:33.7]} 33... Rf1 {[%clk 0:00:56.7]} 34. Rxc6 {[%clk 0:00:33.7]}
34... Rg1+ {[%clk 0:00:54.8]} 35. Kf2 {[%clk 0:00:33.6]} 35... Rh1 {[%clk
0:00:55.1]} 36. Kg2 {[%clk 0:00:34]} 36... Rd1 {[%clk 0:00:49.5]} 37. Rc5 {[%clk
0:00:33.9]} 37... Ra8 {[%clk 0:00:48.7]} 38. Kf2 {[%clk 0:00:33.2]} 38... Ra6
{[%clk 0:00:48.7]} 39. Ke3 {[%clk 0:00:32.7]} 39... Re6 {[%clk 0:00:47.9]} 40.
Kf2 {[%clk 0:00:32.7]} 40... Ra6 {[%clk 0:00:47.6]} 41. Rc8+ {[%clk 0:00:30.2]}
41... Kg7 {[%clk 0:00:47.7]} 42. Rc7 {[%clk 0:00:30.5]} 42... Kf8 {[%clk
0:00:48.1]} 43. Re3 {[%clk 0:00:29]} 43... Rd2+ {[%clk 0:00:47.9]} 44. Kg3
{[%clk 0:00:28.9]} 44... Rd1 {[%clk 0:00:46.5]} 45. Rf3 {[%clk 0:00:29]} 45...
Rg1+ {[%clk 0:00:44.3]} 46. Kh2 {[%clk 0:00:28.6]} 46... Rc1 {[%clk 0:00:44.2]}
47. Rfxf7+ {[%clk 0:00:28.7]} 47... Ke8 {[%clk 0:00:44.7]} 48. Rh7 {[%clk
0:00:28.1]} 48... Kd8 {[%clk 0:00:43.2]} 49. Rb7 {[%clk 0:00:24.4]} 49... Rxc2+
{[%clk 0:00:43.2]} 50. Kg1 {[%clk 0:00:24.4]} 50... Rc1+ {[%clk 0:00:43.2]} 51.
Kf2 {[%clk 0:00:24.4]} 51... Rac6 {[%clk 0:00:43.8]} 52. Rh8# {[%clk 0:00:23.8]}
1-0

[Event "Late-Titled-Tuesday-Blitz-March-26-2024"]
[Site "Chess.com"]
[Date "2024.03.26"]
[Round "1"]
[White "Budisavljevic"]
[Black "Road2GM3000"]
[Result "1-0"]
[WhiteElo "2772"]
[BlackElo "2418"]
[TimeControl "180+1"]
[EndTime "14:07:02 PDT"]
[Termination "Budisavljevic won by resignation"]

1. d4 {[%clk 0:03:00.9]} 1... d5 {[%clk 0:02:44]} 2. Nf3 {[%clk 0:03:00]} 2...
Nf6 {[%clk 0:02:43.4]} 3. e3 {[%clk 0:03:00.3]} 3... c6 {[%clk 0:02:42.4]} 4. c4
{[%clk 0:02:55.8]} 4... a6 {[%clk 0:02:42.6]} 5. b3 {[%clk 0:02:55.3]} 5... Bg4
{[%clk 0:02:42.1]} 6. Qc2 {[%clk 0:02:52.4]} 6... e6 {[%clk 0:02:42.2]} 7. Ne5
{[%clk 0:02:52.6]} 7... Bf5 {[%clk 0:02:42]} 8. Bd3 {[%clk 0:02:52.9]} 8... Bxd3
{[%clk 0:02:41.2]} 9. Nxd3 {[%clk 0:02:53.2]} 9... Nbd7 {[%clk 0:02:41.1]} 10.
O-O {[%clk 0:02:52.3]} 10... Bd6 {[%clk 0:02:40]} 11. Bb2 {[%clk 0:02:52.6]}
11... Ne4 {[%clk 0:02:37.1]} 12. Nd2 {[%clk 0:02:52.2]} 12... f5 {[%clk
0:02:34]} 13. Nf3 {[%clk 0:02:48.4]} 13... Ndf6 {[%clk 0:02:31.1]} 14. Nfe5
{[%clk 0:02:46.7]} 14... Bc7 {[%clk 0:01:57.1]} 15. a4 {[%clk 0:02:32.1]} 15...
O-O {[%clk 0:01:56.4]} 16. b4 {[%clk 0:02:26.6]} 16... dxc4 {[%clk 0:01:48.7]}
17. Qxc4 {[%clk 0:02:27.5]} 17... Bxe5 {[%clk 0:01:34.7]} 18. Qxe6+ {[%clk
0:02:25.2]} 18... Kh8 {[%clk 0:01:34.4]} 19. Nxe5 {[%clk 0:02:25.6]} 19... Qc7
{[%clk 0:01:28.9]} 20. Qxf5 {[%clk 0:02:18.2]} 20... Nd2 {[%clk 0:01:26.2]} 21.
Qh3 {[%clk 0:01:58.3]} 21... Nxf1 {[%clk 0:01:12.9]} 22. Ng6+ {[%clk 0:01:57.9]}
22... Kg8 {[%clk 0:01:12.8]} 23. Nxf8 {[%clk 0:01:58.2]} 23... Qxh2+ {[%clk
0:00:48.3]} 24. Qxh2 {[%clk 0:01:52.5]} 24... Nxh2 {[%clk 0:00:49.2]} 25. Nxh7
{[%clk 0:01:51.6]} 25... Kxh7 {[%clk 0:00:38.2]} 26. Kxh2 {[%clk 0:01:51.4]}
26... Rf8 {[%clk 0:00:36]} 27. Kg1 {[%clk 0:01:47.5]} 27... Ng4 {[%clk 0:00:31]}
28. Rf1 {[%clk 0:01:47.6]} 28... Kg6 {[%clk 0:00:30.8]} 29. Bc1 {[%clk 0:01:47]}
29... Nf6 {[%clk 0:00:29.7]} 30. f3 {[%clk 0:01:43.7]} 30... Nd5 {[%clk
0:00:28.5]} 31. Bd2 {[%clk 0:01:43.3]} 31... Rd8 {[%clk 0:00:29.1]} 32. Kf2
{[%clk 0:01:39.4]} 32... Nb6 {[%clk 0:00:28.5]} 33. Ra1 {[%clk 0:01:24.7]} 33...
Nc4 {[%clk 0:00:25.9]} 34. Bc1 {[%clk 0:01:24.4]} 34... Kf5 {[%clk 0:00:24.1]}
35. Ra2 {[%clk 0:01:23.6]} 35... g5 {[%clk 0:00:23.8]} 36. g4+ {[%clk 0:01:21]}
36... Ke6 {[%clk 0:00:21.9]} 37. Rc2 {[%clk 0:01:20.1]} 37... b5 {[%clk
0:00:21.1]} 38. axb5 {[%clk 0:01:18.9]} 38... axb5 {[%clk 0:00:21.7]} 39. Ra2
{[%clk 0:01:19]} 39... Rh8 {[%clk 0:00:21.5]} 40. Kg2 {[%clk 0:01:18.1]} 40...
Kd6 {[%clk 0:00:19.8]} 41. Ra7 {[%clk 0:01:14.5]} 41... Re8 {[%clk 0:00:18.7]}
42. e4 {[%clk 0:01:12.8]} 42... Rg8 {[%clk 0:00:19]} 43. Rf7 {[%clk 0:01:11.3]}
43... Nb6 {[%clk 0:00:18.9]} 44. Rf5 {[%clk 0:01:10]} 44... Nd7 {[%clk
0:00:17.5]} 45. Bxg5 {[%clk 0:01:04.8]} 45... Ra8 {[%clk 0:00:18.4]} 46. Rf7
{[%clk 0:00:54.3]} 46... Ra2+ {[%clk 0:00:16.9]} 47. Kg3 {[%clk 0:00:53.7]}
47... Rb2 {[%clk 0:00:16.5]} 48. e5+ {[%clk 0:00:52.3]} 48... Ke6 {[%clk
0:00:15.9]} 49. Re7+ {[%clk 0:00:52.2]} 49... Kd5 {[%clk 0:00:16.3]} 50. Rxd7+
{[%clk 0:00:52.2]} 50... Kc4 {[%clk 0:00:17.2]} 51. Be7 {[%clk 0:00:51.4]} 1-0

[Event "Late-Titled-Tuesday-Blitz-March-26-2024"]
[Site "Chess.com"]
[Date "2024.03.26"]
[Round "1"]
[White "IsuruAlahakoon"]
[Black "GelmanAlexander"]
[Result "0-1"]
[WhiteElo "2373"]
[BlackElo "2681"]
[TimeControl "180+1"]
[EndTime "14:07:05 PDT"]
[Termination "GelmanAlexander won on time"]

1. Nf3 {[%clk 0:03:00.9]} 1... c5 {[%clk 0:02:57.6]} 2. c3 {[%clk 0:02:59.6]}
2... b6 {[%clk 0:02:55.8]} 3. d4 {[%clk 0:02:58.1]} 3... Bb7 {[%clk 0:02:56.4]}
4. Bf4 {[%clk 0:02:58]} 4... d6 {[%clk 0:02:55.7]} 5. e3 {[%clk 0:02:56.9]} 5...
Nd7 {[%clk 0:02:56.3]} 6. Nbd2 {[%clk 0:02:56.1]} 6... Ngf6 {[%clk 0:02:56.9]}
7. Be2 {[%clk 0:02:49]} 7... a6 {[%clk 0:02:56.1]} 8. h3 {[%clk 0:02:46.2]} 8...
h6 {[%clk 0:02:56]} 9. O-O {[%clk 0:02:45.5]} 9... g5 {[%clk 0:02:55.3]} 10. Bh2
{[%clk 0:02:40.5]} 10... Rg8 {[%clk 0:02:55.5]} 11. Ne1 {[%clk 0:02:30.4]} 11...
h5 {[%clk 0:02:54.5]} 12. Bf3 {[%clk 0:02:29.1]} 12... Bxf3 {[%clk 0:02:42.1]}
13. Nexf3 {[%clk 0:02:21.6]} 13... g4 {[%clk 0:02:43]} 14. hxg4 {[%clk
0:02:21.3]} 14... hxg4 {[%clk 0:02:43.9]} 15. Ne1 {[%clk 0:02:17]} 15... Bh6
{[%clk 0:02:36.3]} 16. Nd3 {[%clk 0:02:11.6]} 16... Qc7 {[%clk 0:02:29]} 17. Bf4
{[%clk 0:01:57]} 17... Bxf4 {[%clk 0:02:27.3]} 18. Nxf4 {[%clk 0:01:57.9]} 18...
Qb7 {[%clk 0:02:22.9]} 19. Qe2 {[%clk 0:01:47.5]} 19... O-O-O {[%clk 0:02:14.6]}
20. a4 {[%clk 0:01:42.7]} 20... Rh8 {[%clk 0:02:11.5]} 21. e4 {[%clk 0:01:38.2]}
21... Rh6 {[%clk 0:02:08.5]} 22. f3 {[%clk 0:01:06.7]} 22... g3 {[%clk
0:01:55.9]} 23. Rfe1 {[%clk 0:00:55.8]} 23... Rdh8 {[%clk 0:01:52.7]} 24. Nh3
{[%clk 0:00:55.7]} 24... Nh5 {[%clk 0:01:36.7]} 25. Qe3 {[%clk 0:00:54.7]} 25...
e5 {[%clk 0:01:34]} 26. Nc4 {[%clk 0:00:37.5]} 26... Nf4 {[%clk 0:01:29.5]} 27.
Nxd6+ {[%clk 0:00:35.8]} 27... Rxd6 {[%clk 0:01:28.2]} 28. dxe5 {[%clk 0:00:34]}
28... Nxh3+ {[%clk 0:01:24.6]} 29. gxh3 {[%clk 0:00:34.9]} 29... Nxe5 {[%clk
0:01:24.8]} 30. f4 {[%clk 0:00:28.4]} 30... Ng6 {[%clk 0:01:11.5]} 31. a5 {[%clk
0:00:27.8]} 31... c4 {[%clk 0:01:07.9]} 32. axb6 {[%clk 0:00:25.9]} 32... Qxb6
{[%clk 0:01:08.4]} 33. e5 {[%clk 0:00:23.6]} 33... Qxe3+ {[%clk 0:01:04.7]} 34.
Rxe3 {[%clk 0:00:24.5]} 34... Rb6 {[%clk 0:01:04.2]} 35. f5 {[%clk 0:00:23.4]}
35... Nf4 {[%clk 0:01:03.6]} 36. Re4 {[%clk 0:00:20.5]} 36... Nxh3+ {[%clk
0:00:58.7]} 37. Kg2 {[%clk 0:00:21.4]} 37... Rxb2+ {[%clk 0:00:55.2]} 38. Kxg3
{[%clk 0:00:22.3]} 38... Kb7 {[%clk 0:00:49.7]} 39. Rd1 {[%clk 0:00:17.2]} 39...
Nf2 {[%clk 0:00:44]} 40. Rd7+ {[%clk 0:00:16.1]} 40... Kc6 {[%clk 0:00:43.9]}
41. Red4 {[%clk 0:00:15.7]} 41... Rh6 {[%clk 0:00:40.9]} 0-1

[Event "Late-Titled-Tuesday-Blitz-March-26-2024"]
[Site "Chess.com"]
[Date "2024.03.26"]
[Round "1"]
[White "Kavyev_Ruslan"]
[Black "Andrey_Klymchuk"]
[Result "1-0"]
[WhiteElo "2399"]
[BlackElo "2682"]
[TimeControl "180+1"]
[EndTime "14:07:11 PDT"]
[Termination "Kavyev_Ruslan won by resignation"]

1. d4 {[%clk 0:03:00.9]} 1... Nf6 {[%clk 0:02:59.6]} 2. Nf3 {[%clk 0:02:59.8]}
2... g6 {[%clk 0:02:58.8]} 3. c4 {[%clk 0:02:58.5]} 3... Bg7 {[%clk 0:02:58.6]}
4. g3 {[%clk 0:02:58.7]} 4... b6 {[%clk 0:02:58.5]} 5. Bg2 {[%clk 0:02:58]} 5...
Bb7 {[%clk 0:02:58.9]} 6. O-O {[%clk 0:02:58.4]} 6... O-O {[%clk 0:02:59]} 7.
Nc3 {[%clk 0:02:58.9]} 7... Ne4 {[%clk 0:02:59]} 8. Nxe4 {[%clk 0:02:51.9]} 8...
Bxe4 {[%clk 0:02:59.9]} 9. b3 {[%clk 0:02:52.4]} 9... c5 {[%clk 0:02:59.5]} 10.
Bb2 {[%clk 0:02:52.7]} 10... Nc6 {[%clk 0:02:56.4]} 11. Qd2 {[%clk 0:02:47.2]}
11... Bxf3 {[%clk 0:02:49.2]} 12. Bxf3 {[%clk 0:02:43.8]} 12... cxd4 {[%clk
0:02:49.3]} 13. Rad1 {[%clk 0:02:23.3]} 13... Rc8 {[%clk 0:02:43.9]} 14. Bxc6
{[%clk 0:02:19.7]} 14... Rxc6 {[%clk 0:02:40]} 15. Bxd4 {[%clk 0:02:19.9]} 15...
Bxd4 {[%clk 0:02:38]} 16. Qxd4 {[%clk 0:02:19.5]} 16... d6 {[%clk 0:02:38.5]}
17. e4 {[%clk 0:02:18.1]} 17... Qc7 {[%clk 0:02:36.2]} 18. Rfe1 {[%clk
0:02:16.9]} 18... Rc5 {[%clk 0:02:35]} 19. Re3 {[%clk 0:02:05.6]} 19... a6
{[%clk 0:02:34.3]} 20. Rde1 {[%clk 0:01:56]} 20... Rd8 {[%clk 0:02:28.3]} 21.
Qb2 {[%clk 0:01:48.9]} 21... f6 {[%clk 0:02:25.7]} 22. f4 {[%clk 0:01:39.8]}
22... b5 {[%clk 0:02:25.7]} 23. cxb5 {[%clk 0:01:39.3]} 23... axb5 {[%clk
0:02:22.4]} 24. R1e2 {[%clk 0:01:29]} 24... b4 {[%clk 0:02:18.6]} 25. e5 {[%clk
0:01:11.5]} 25... dxe5 {[%clk 0:02:13.9]} 26. fxe5 {[%clk 0:01:09.5]} 26... Rc1+
{[%clk 0:02:01.8]} 27. Kf2 {[%clk 0:01:00.3]} 27... Rdd1 {[%clk 0:01:54.9]} 28.
exf6 {[%clk 0:00:41]} 28... Rf1+ {[%clk 0:01:48.4]} 29. Kg2 {[%clk 0:00:40.9]}
29... Qc6+ {[%clk 0:01:46.8]} 30. Kh3 {[%clk 0:00:32.3]} 30... exf6 {[%clk
0:01:38.8]} 31. Re8+ {[%clk 0:00:27.5]} 31... Kg7 {[%clk 0:01:37.8]} 32. R8e7+
{[%clk 0:00:27.7]} 32... Kh6 {[%clk 0:01:23.3]} 33. Qd2+ {[%clk 0:00:26]} 33...
g5 {[%clk 0:01:23]} 34. Qd3 {[%clk 0:00:20.2]} 34... f5 {[%clk 0:00:40.5]} 35.
R2e6+ {[%clk 0:00:18.3]} 35... Qxe6 {[%clk 0:00:37]} 36. Rxe6+ {[%clk
0:00:19.2]} 36... Kh5 {[%clk 0:00:37.2]} 37. g4+ {[%clk 0:00:15]} 37... fxg4+
{[%clk 0:00:36.7]} 38. Kg2 {[%clk 0:00:15.5]} 38... Rg1+ {[%clk 0:00:29.5]} 39.
Kf2 {[%clk 0:00:15.5]} 39... Rcf1+ {[%clk 0:00:26.3]} 40. Qxf1 {[%clk
0:00:14.5]} 40... g3+ {[%clk 0:00:24.6]} 41. hxg3 {[%clk 0:00:14.3]} 1-0

[Event "Late-Titled-Tuesday-Blitz-March-26-2024"]
[Site "Chess.com"]
[Date "2024.03.26"]
[Round "1"]
[White "Xavier_mompel"]
[Black "BilicVladimir"]
[Result "1/2-1/2"]
[WhiteElo "2346"]
[BlackElo "2639"]
[TimeControl "180+1"]
[EndTime "14:07:12 PDT"]
[Termination "Game drawn by repetition"]

1. e4 {[%clk 0:03:00.9]} 1... c6 {[%clk 0:03:00]} 2. d4 {[%clk 0:03:00.5]} 2...
d5 {[%clk 0:03:00.9]} 3. Nc3 {[%clk 0:03:00]} 3... dxe4 {[%clk 0:03:00.7]} 4.
Nxe4 {[%clk 0:02:59.7]} 4... Nd7 {[%clk 0:03:01.6]} 5. Nf3 {[%clk 0:02:59.4]}
5... Ngf6 {[%clk 0:03:01.5]} 6. Nxf6+ {[%clk 0:02:59.3]} 6... Nxf6 {[%clk
0:03:01.6]} 7. Bd3 {[%clk 0:02:59.8]} 7... Bg4 {[%clk 0:03:00.3]} 8. c3 {[%clk
0:02:59.4]} 8... Qd5 {[%clk 0:02:59.5]} 9. Be2 {[%clk 0:02:57.7]} 9... e6 {[%clk
0:02:59.7]} 10. h3 {[%clk 0:02:57.3]} 10... Bh5 {[%clk 0:02:58.6]} 11. O-O
{[%clk 0:02:57.1]} 11... Be7 {[%clk 0:02:58.7]} 12. Ne5 {[%clk 0:02:56.4]} 12...
Bxe2 {[%clk 0:02:57.5]} 13. Qxe2 {[%clk 0:02:57.3]} 13... O-O {[%clk 0:02:57.5]}
14. Bf4 {[%clk 0:02:50.3]} 14... Qa5 {[%clk 0:02:55]} 15. Rfe1 {[%clk
0:02:40.5]} 15... Rad8 {[%clk 0:02:52.6]} 16. Bh2 {[%clk 0:02:30.1]} 16... h6
{[%clk 0:02:51.3]} 17. a4 {[%clk 0:02:27.3]} 17... Qd5 {[%clk 0:02:35.3]} 18.
Qc4 {[%clk 0:02:19.6]} 18... Qxc4 {[%clk 0:02:30.9]} 19. Nxc4 {[%clk 0:02:20.5]}
19... Rd7 {[%clk 0:02:22.7]} 20. a5 {[%clk 0:02:07]} 20... Rc8 {[%clk
0:02:17.2]} 21. f3 {[%clk 0:01:37.8]} 21... Nd5 {[%clk 0:02:15.4]} 22. Ne5
{[%clk 0:01:35.4]} 22... Rdd8 {[%clk 0:02:14.5]} 23. Rad1 {[%clk 0:01:10.6]}
23... Bd6 {[%clk 0:02:04.5]} 24. Nd3 {[%clk 0:01:08.5]} 24... Bxh2+ {[%clk
0:02:01.9]} 25. Kxh2 {[%clk 0:01:09.4]} 25... b6 {[%clk 0:02:01.2]} 26. axb6
{[%clk 0:01:08.8]} 26... axb6 {[%clk 0:02:02.1]} 27. Ra1 {[%clk 0:00:50.5]}
27... c5 {[%clk 0:02:01.2]} 28. dxc5 {[%clk 0:00:50.9]} 28... bxc5 {[%clk
0:02:01]} 29. Ne5 {[%clk 0:00:46.9]} 29... c4 {[%clk 0:01:59.3]} 30. Ra4 {[%clk
0:00:40]} 30... Nb6 {[%clk 0:01:55.5]} 31. Rb4 {[%clk 0:00:40.2]} 31... Rd6
{[%clk 0:01:51.9]} 32. Re4 {[%clk 0:00:38.9]} 32... Rd2 {[%clk 0:01:45.8]} 33.
Nxc4 {[%clk 0:00:36.8]} 33... Nxc4 {[%clk 0:01:42]} 34. Rexc4 {[%clk 0:00:34.5]}
34... Rxc4 {[%clk 0:01:41.9]} 35. Rxc4 {[%clk 0:00:35.4]} 35... Rxb2 {[%clk
0:01:42]} 36. Rc7 {[%clk 0:00:35]} 36... g5 {[%clk 0:01:41.4]} 37. c4 {[%clk
0:00:31.4]} 37... Rc2 {[%clk 0:01:41.9]} 38. c5 {[%clk 0:00:30.9]} 38... Kg7
{[%clk 0:01:41.5]} 39. Kg3 {[%clk 0:00:30.6]} 39... Kf6 {[%clk 0:01:40.3]} 40.
c6 {[%clk 0:00:24.9]} 40... Rc4 {[%clk 0:01:37.9]} 41. Rc8 {[%clk 0:00:23.9]}
41... h5 {[%clk 0:01:37.5]} 42. c7 {[%clk 0:00:19.3]} 42... Kg7 {[%clk
0:01:36.7]} 43. Kf2 {[%clk 0:00:16]} 43... h4 {[%clk 0:01:34.9]} 44. Ke3 {[%clk
0:00:15.1]} 44... Kf6 {[%clk 0:01:29.5]} 45. Kd3 {[%clk 0:00:14.2]} 45... Rc1
{[%clk 0:01:28.9]} 46. Kd2 {[%clk 0:00:11.4]} 46... Rc6 {[%clk 0:01:28.3]} 47.
Ke3 {[%clk 0:00:11.2]} 47... Kf5 {[%clk 0:01:18.4]} 48. Kf2 {[%clk 0:00:04.4]}
48... f6 {[%clk 0:01:15.4]} 49. Ke3 {[%clk 0:00:03]} 49... Rc3+ {[%clk
0:01:13.7]} 50. Kd4 {[%clk 0:00:02.9]} 50... Rc2 {[%clk 0:01:12.7]} 51. Kd3
{[%clk 0:00:02.7]} 51... Rc6 {[%clk 0:01:08.5]} 52. Ke3 {[%clk 0:00:03.2]} 52...
Rc4 {[%clk 0:01:07.8]} 53. Kd3 {[%clk 0:00:02.5]} 53... Rc1 {[%clk 0:01:07.6]}
54. Kd2 {[%clk 0:00:02.7]} 54... Rc6 {[%clk 0:01:07.3]} 55. Ke3 {[%clk
0:00:02.9]} 1/2-1/2